lending/lending_fUSD_20250501
["ID","MTS","AMOUNT","RATE_DAILY","PERIOD"]
[359546009,1746100246490,-1000.0,0.00021764,2]
[359546010,1746100246502,-1817.36844,0.00021796,2]
[359546011,1746100246515,-1227.93984,0.00021796,2]
[359546045,1746100247576,-688.05832708,0.00021796,2]
[359546475,1746100595768,400.0,0.00032,120]
[359546478,1746100647940,400.0,0.00032,120]
[359546479,1746100675179,170.09760431,0.000328,60]
[359546480,1746100768632,320.0,0.00026945,120]
[359546481,1746100768796,320.0,0.0002964,120]
[359546482,1746100768996,320.0,0.00032334,120]
[359546493,1746101431392,-585.08519472,0.00019631,2]
[359546494,1746101431449,-349.9278476,0.00019631,2]
[359546495,1746101431461,-963.77695768,0.00019631,2]
[359546496,1746101431470,-1276.6230406,0.000197,2]
[359546502,1746101436132,-401.69411158,0.000197,2]
[359546503,1746101436142,-2740.06159955,0.0001999,2]
[359546505,1746101436152,-852.09315267,0.000209,4]
[359546507,1746101436161,-803.185979,0.00020956,2]
[359546509,1746101436171,-1200.0,0.00021061,2]
[359546511,1746101436181,-500.0,0.00021062,3]
[359546513,1746101436192,-1000.0,0.00021118,2]
[359546515,1746101436202,-300.0,0.00021371,2]
[359546517,1746101436212,-1575.33,0.00021372,2]
[359546519,1746101436221,-4000.0,0.00021459,2]
[359546521,1746101436231,-735.23249726,0.0002153,2]
[359546522,1746101436240,-320.0,0.00021556,2]
[359546524,1746101436249,-200.0,0.00021568,2]
[359546526,1746101436259,-187.18086585,0.0002157,2]
[359546528,1746101436268,-500.0,0.00021572,2]
[359546530,1746101436278,-500.0,0.00021572,2]
[359546532,1746101436287,-524.44504459,0.00021572,2]
[359546534,1746101436297,-252.217496,0.00021572,2]
[359546536,1746101436307,-500.0,0.00021572,2]
[359546538,1746101436317,-500.0,0.00021572,2]
[359546540,1746101436326,-500.0,0.00021572,2]
[359546542,1746101436335,-23900.0,0.00021573,2]
[359546543,1746101436345,-852.09315251,0.00021762,5]
[359546545,1746101436355,-8759.5921154,0.00021785,2]
[359546547,1746101436365,-396.16628054,0.00021796,2]
[359546549,1746101436375,-200.0,0.00021796,2]
[359546551,1746101436384,-151.0,0.00021796,2]
[359546553,1746101436394,-5053.54823058,0.000218,2]
[359546555,1746101436403,-150.0,0.00021882,2]
[359546557,1746101436413,-31104.68075127,0.00021883,2]
[359546559,1746101436422,-200.0,0.00021888,2]
[359546561,1746101436431,-1898.79,0.00021895,2]
[359546563,1746101436441,-513.8227512,0.00021918,2]
[359546565,1746101436450,-200.0,0.00022014,2]
[359546567,1746101436459,-200.0,0.00022234,2]
[359546569,1746101436468,-2468.08,0.00022242,2]
[359546571,1746101436477,-302.66,0.00022444,2]
[359546573,1746101436487,-300.25,0.00022444,2]
[359546574,1746101436496,-200.0,0.00022456,2]
[359546576,1746101436505,-303.87,0.00022462,2]
[359546578,1746101436515,-300.82,0.00022462,2]
[359546580,1746101436524,-303.01,0.00022462,2]
[359546582,1746101436533,-303.99,0.00022462,2]
[359546584,1746101436543,-191.12151276,0.00022462,2]
[359546586,1746101436555,-110.79848724,0.00022462,2]
[359546588,1746101436564,-1592.3339651,0.000225,15]
[359546621,1746101437402,-1097.8656,0.000225,15]
[359546622,1746101437455,-209.8004349,0.000225,15]
[359546623,1746101437464,-225.79956509,0.000225,2]
[359546624,1746101437475,-20270.25019557,0.000225,2]
[359546625,1746101437565,-2066.53663178,0.000225,2]
[359546626,1746101437576,-5523.7254445,0.000225,2]
[359546627,1746101437673,-2031.31663271,0.000225,2]
[359546628,1746101437723,-4147.99547628,0.000225,2]
[359546629,1746101437733,-500.0,0.00022521,2]
[359546630,1746101437745,-250.0,0.00022529,2]
[359546631,1746101437755,-26446.00452372,0.00022547,2]
[359546642,1746101440114,-32903.6269269,0.00022547,2]
[359546653,1746101442599,-4067.24208536,0.00022547,2]
[359546654,1746101442609,-304.04,0.0002257,2]
[359546655,1746101442619,-852.09315251,0.00022624,7]
[359546656,1746101442629,-120.10323621,0.00022681,2]
[359546675,1746101445381,-79.89676379,0.00022681,2]
[359546676,1746101445390,-505.41869876,0.0002271,2]
[359546677,1746101445400,-1882.43052307,0.00022742,2]
[359546678,1746101445409,-302.36,0.00022797,2]
[359546679,1746101445419,-301.46,0.00022797,2]
[359546680,1746101445428,-1225.14417012,0.00022867,2]
[359546681,1746101445438,-161.19,0.00022926,2]
[359546682,1746101445447,-6513.72937589,0.0002296,2]
[359546683,1746101445457,-1627.01449967,0.00023,15]
[359546684,1746101445467,-1000.0,0.00023,14]
[359546685,1746101445476,-1503.31289762,0.00023,2]
[359546686,1746101445486,-400.0,0.00023,2]
[359546687,1746101445495,-315.13086224,0.00023199,2]
[359546688,1746101445505,-5410.44772928,0.000232,2]
[359546689,1746101445516,-2053.34084132,0.000232,2]
[359546691,1746101445800,-1428.76326239,0.000232,2]
[359546692,1746101445811,-3548.72933696,0.000232,2]
[359546696,1746101559413,250.0,0.00017,2]
[359546697,1746101560496,300.0,0.00019,2]
[359546700,1746102078025,1000.0,0.00032876,60]
[359546924,1746102632123,-473.321112,0.00019651,2]
[359546926,1746102632132,-112.20734748,0.0001975,2]
[359546930,1746102632163,-733.05265786,0.0001975,2]
[359546932,1746102632172,-275.0,0.00019898,2]
[359546934,1746102632182,-787.0,0.00019898,2]
[359546936,1746102632191,-1898.28514893,0.000199,2]
[359546938,1746102632204,-358.27880595,0.000199,2]
[359546940,1746102632218,-614.85940952,0.000199,2]
[359546942,1746102632229,-1516.1499997,0.000199,2]
[359546945,1746102632248,-342.63599996,0.000199,2]
[359546946,1746102632261,-8099.108,0.000199,2]
[359546947,1746102632296,-669.92949261,0.000199,2]
[359546948,1746102632310,-2016.30819884,0.000199,2]
[359546949,1746102632321,-1809.20304234,0.000199,2]
[359546951,1746102637621,-500.0,0.00019898,2]
[359546952,1746102637630,-440.27,0.00019898,2]
[359546953,1746102637682,-59.73,0.00019898,2]
[359546954,1746102637692,-500.0,0.00019898,2]
[359546955,1746102637702,-500.0,0.00019898,2]
[359546956,1746102637712,-500.0,0.00019898,2]
[359546957,1746102637721,-500.0,0.00019898,2]
[359546958,1746102637731,-500.0,0.00019898,2]
[359546959,1746102637740,-500.0,0.00019898,2]
[359546960,1746102637750,-500.0,0.00019898,2]
[359546961,1746102637759,-500.0,0.00019898,2]
[359546962,1746102637769,-500.0,0.00019898,2]
[359546963,1746102637779,-500.0,0.00019898,2]
[359546964,1746102637788,-500.0,0.00019898,2]
[359546965,1746102637798,-500.0,0.00019898,2]
[359546966,1746102637807,-500.0,0.00019898,2]
[359546967,1746102637817,-500.0,0.00019898,2]
[359546968,1746102637827,-500.0,0.00019898,2]
[359546969,1746102637835,-500.0,0.00019898,2]
[359546970,1746102637845,-500.0,0.00019898,2]
[359546971,1746102637854,-500.0,0.00019898,2]
[359546972,1746102637864,-500.0,0.00019898,2]
[359546973,1746102637873,-500.0,0.00019898,2]
[359546974,1746102637883,-500.0,0.00019898,2]
[359546975,1746102637892,-500.0,0.00019898,2]
[359546976,1746102637902,-500.0,0.00019898,2]
[359546977,1746102637911,-500.0,0.00019898,2]
[359546978,1746102637920,-500.0,0.00019898,2]
[359546979,1746102637930,-500.0,0.00019898,2]
[359546980,1746102637939,-500.0,0.00019898,2]
[359546981,1746102637949,-500.0,0.00019898,2]
[359546982,1746102637958,-500.0,0.00019898,2]
[359546983,1746102637968,-500.0,0.00019898,2]
[359546984,1746102637978,-500.0,0.00019898,2]
[359546985,1746102637987,-500.0,0.00019898,2]
[359546986,1746102637997,-500.0,0.00019898,2]
[359546987,1746102638006,-500.0,0.00019898,2]
[359546988,1746102638015,-500.0,0.00019898,2]
[359546989,1746102638024,-500.0,0.00019898,2]
[359546990,1746102638034,-500.0,0.00019898,2]
[359546991,1746102638043,-500.0,0.00019898,2]
[359546992,1746102638052,-500.0,0.00019898,2]
[359546993,1746102638061,-500.0,0.00019898,2]
[359546995,1746102638071,-500.0,0.00019898,2]
[359546997,1746102638080,-500.0,0.00019898,2]
[359546999,1746102638089,-207.13997675,0.00019898,2]
[359547001,1746102638098,-500.0,0.00019898,2]
[359547003,1746102638107,-500.0,0.00019898,2]
[359547005,1746102638117,-500.0,0.00019898,2]
[359547007,1746102638127,-500.0,0.00019898,2]
[359547008,1746102638137,-500.0,0.00019898,2]
[359547011,1746102638146,-425.50071505,0.00019898,2]
[359547013,1746102638158,-74.49928495,0.00019898,2]
[359547015,1746102638167,-500.0,0.00019898,2]
[359547017,1746102638176,-433.89632854,0.00019898,2]
[359547042,1746102638312,-66.10367146,0.00019898,2]
[359547043,1746102638323,-7409.23595314,0.000199,2]
[359547044,1746102638345,-59070.61257355,0.000199,2]
[359547045,1746102638355,-202.12773506,0.000199,2]
[359547046,1746102638364,-227.20513011,0.000199,2]
[359547047,1746102638373,-1328.26597161,0.000199,2]
[359547048,1746102638381,-1128.93439192,0.000199,2]
[359547049,1746102638391,-200.98606687,0.000199,2]
[359547051,1746102638400,-300.0,0.00019999,2]
[359547052,1746102638409,-300.0,0.00019999,2]
[359547054,1746102638418,-220.59160356,0.00019999,2]
[359547055,1746102638427,-7748.25792149,0.0002,2]
[359547058,1746102638438,-4368127.75949009,0.0002,2]
[359547060,1746102638455,-2112.07874154,0.0002,2]
[359547062,1746102638467,-6132.246,0.0002,2]
[359547183,1746102640518,-4632.5697375,0.0002,2]
[359547186,1746102640552,-490.30116499,0.0002,2]
[359547193,1746102642642,-250.69422252,0.000199,2]
[359547194,1746102642857,-463.125,0.000199,2]
[359547205,1746102645579,-286.18077748,0.000199,2]
[359547206,1746102645589,-82.73553935,0.0002,2]
[359547207,1746102645651,-3248.97106603,0.0002,2]
[359547208,1746102645736,-299.99,0.0002,2]
[359547209,1746102645747,-5870.17895854,0.0002,2]
[359547210,1746102645794,-4899.75366782,0.0002,2]
[359547211,1746102645806,-2544.82818617,0.0002,2]
[359547212,1746102645817,-1861.77348812,0.0002,2]
[359547213,1746102645828,-1711.149975,0.0002,2]
[359547214,1746102645840,-4361.0,0.0002,2]
[359547215,1746102645850,-420.31688368,0.0002,2]
[359547216,1746102645861,-928.40309998,0.0002,2]
[359547217,1746102645891,-3405.55913296,0.0002,2]
[359547218,1746102645902,-1793.06,0.0002,2]
[359547219,1746102645937,-1262.11530253,0.0002,2]
[359547220,1746102645948,-18979.26790359,0.0002,2]
[359547221,1746102645960,-46049.12192575,0.0002,2]
[359547230,1746102833165,2229.65,0.00019193,2]
[359547232,1746103075643,12121.83842981,0.00018,2]
[359547233,1746103115299,503.26,0.00032877,60]
[359547234,1746103229610,210.26524446,0.00032877,60]
[359547235,1746103335373,160.0,0.00031026,120]
[359547236,1746103358030,500.0,0.00031,60]
[359547237,1746103374875,250.0,0.00017,2]
[359547238,1746103375999,300.0,0.00019,2]
[359547239,1746103465526,-606.39444881,0.00019848,2]
[359547240,1746103465547,-500.0,0.00019873,2]
[359547241,1746103465573,-6667.99907103,0.00019883,2]
[359547242,1746103465612,-500.0,0.00019892,2]
[359547243,1746103465649,-500.0,0.00019892,2]
[359547244,1746103465687,-500.0,0.00019892,2]
[359547245,1746103465723,-500.0,0.00019892,2]
[359547246,1746103465757,-500.0,0.00019892,2]
[359547247,1746103465793,-500.0,0.00019892,2]
[359547248,1746103465830,-500.0,0.00019892,2]
[359547249,1746103465868,-500.0,0.00019892,2]
[359547250,1746103465904,-500.0,0.00019892,2]
[359547251,1746103465940,-500.0,0.00019892,2]
[359547252,1746103465975,-500.0,0.00019892,2]
[359547253,1746103466010,-500.0,0.00019892,2]
[359547254,1746103466041,-500.0,0.00019892,2]
[359547255,1746103466077,-500.0,0.00019892,2]
[359547256,1746103466107,-500.0,0.00019892,2]
[359547257,1746103466140,-500.0,0.00019892,2]
[359547258,1746103466171,-500.0,0.00019892,2]
[359547259,1746103466207,-500.0,0.00019892,2]
[359547260,1746103466238,-500.0,0.00019892,2]
[359547261,1746103466269,-500.0,0.00019892,2]
[359547262,1746103466306,-500.0,0.00019892,2]
[359547263,1746103466341,-500.0,0.00019892,2]
[359547264,1746103466375,-500.0,0.00019892,2]
[359547265,1746103466408,-500.0,0.00019892,2]
[359547266,1746103466440,-500.0,0.00019892,2]
[359547267,1746103466474,-500.0,0.00019892,2]
[359547268,1746103466512,-500.0,0.00019892,2]
[359547269,1746103466548,-500.0,0.00019892,2]
[359547270,1746103466585,-500.0,0.00019892,2]
[359547271,1746103466621,-500.0,0.00019892,2]
[359547272,1746103466657,-500.0,0.00019892,2]
[359547273,1746103466692,-500.0,0.00019892,2]
[359547274,1746103466726,-500.0,0.00019892,2]
[359547275,1746103466760,-500.0,0.00019892,2]
[359547276,1746103466794,-500.0,0.00019892,2]
[359547277,1746103466829,-500.0,0.00019892,2]
[359547278,1746103466862,-500.0,0.00019892,2]
[359547279,1746103466896,-397.80683078,0.00019892,2]
[359547280,1746103466929,-500.0,0.00019892,2]
[359547281,1746103466964,-500.0,0.00019892,2]
[359547282,1746103466998,-1800.06690018,0.00019892,2]
[359547283,1746103467032,-1800.06690018,0.00019892,2]
[359547284,1746103467076,-1800.06690018,0.00019892,2]
[359547285,1746103467119,-1800.06690018,0.00019892,2]
[359547286,1746103467159,-1800.06690018,0.00019892,2]
[359547287,1746103467197,-1800.06690018,0.00019892,2]
[359547288,1746103467234,-1800.06690018,0.00019892,2]
[359547289,1746103467270,-1800.06690018,0.00019892,2]
[359547290,1746103467307,-1800.06690018,0.00019892,2]
[359547291,1746103467343,-1800.06690018,0.00019892,2]
[359547292,1746103467377,-1800.06690018,0.00019892,2]
[359547293,1746103467411,-1800.06690018,0.00019892,2]
[359547294,1746103467445,-1800.06690018,0.00019892,2]
[359547295,1746103467478,-1800.06690018,0.00019892,2]
[359547296,1746103467514,-1800.06690018,0.00019892,2]
[359547297,1746103467546,-1800.06690018,0.00019892,2]
[359547298,1746103467583,-1800.06690018,0.00019892,2]
[359547299,1746103467630,-1800.06690018,0.00019892,2]
[359547300,1746103467669,-1800.06690018,0.00019892,2]
[359547301,1746103467708,-1800.06690018,0.00019892,2]
[359547302,1746103467746,-1800.06690018,0.00019892,2]
[359547303,1746103467785,-1800.06690018,0.00019892,2]
[359547304,1746103467823,-1800.06690018,0.00019892,2]
[359547305,1746103467859,-1800.06690018,0.00019892,2]
[359547306,1746103467894,-1800.06690018,0.00019892,2]
[359547307,1746103467930,-1800.06690018,0.00019892,2]
[359547308,1746103467963,-1800.06690018,0.00019892,2]
[359547309,1746103467996,-1800.06690018,0.00019892,2]
[359547310,1746103468030,-1800.06690018,0.00019892,2]
[359547311,1746103468061,-1800.06690018,0.00019892,2]
[359547312,1746103468092,-1800.06690019,0.00019892,2]
[359547313,1746103468126,-1800.06690019,0.00019892,2]
[359547314,1746103468163,-1800.06690019,0.00019892,2]
[359547315,1746103468196,-1800.06690019,0.00019892,2]
[359547316,1746103468231,-1800.06690019,0.00019892,2]
[359547317,1746103468266,-1800.06690019,0.00019892,2]
[359547318,1746103468300,-1800.06690019,0.00019892,2]
[359547319,1746103468332,-1800.06690019,0.00019892,2]
[359547320,1746103468363,-1800.06690019,0.00019892,2]
[359547321,1746103468395,-1800.06690019,0.00019892,2]
[359547322,1746103468427,-1800.06690019,0.00019892,2]
[359547323,1746103468467,-1800.06690019,0.00019892,2]
[359547324,1746103468499,-1800.06690019,0.00019892,2]
[359547325,1746103468533,-1800.06690019,0.00019892,2]
[359547326,1746103468568,-1800.06690019,0.00019892,2]
[359547327,1746103468600,-1800.06690019,0.00019892,2]
[359547328,1746103468637,-1800.06690019,0.00019892,2]
[359547329,1746103468669,-1800.06690019,0.00019892,2]
[359547330,1746103468696,-1200.0,0.00019893,2]
[359547331,1746103468722,-195.0,0.00019893,2]
[359547332,1746103468749,-500.0,0.000199,2]
[359547333,1746103468775,-12479.983,0.000199,2]
[359547334,1746103468801,-174.85762018,0.000199,2]
[359547335,1746103468826,-1589.6522,0.000199,2]
[359547336,1746103468852,-2277.6455,0.000199,2]
[359547337,1746103468873,-12546.1528,0.000199,2]
[359547338,1746103468895,-199.29347218,0.000199,2]
[359547339,1746103469333,-2500.0,0.000199,2]
[359547340,1746103469403,-11006.1298,0.000199,2]
[359547341,1746103469426,-1000.0,0.000199,2]
[359547342,1746103469448,-500.0,0.00019973,2]
[359547343,1746103469470,-500.0,0.00019973,2]
[359547344,1746103469491,-500.0,0.00019973,2]
[359547345,1746103469513,-164.94585598,0.00019973,2]
[359547346,1746103469537,-393.7495155,0.00019999,2]
[359547347,1746103469564,-535197.17867672,0.0002,2]
[359547348,1746103540160,-1062.3671166,0.000198,2]
[359547349,1746103540181,-211.2726878,0.000199,2]
[359547350,1746103540204,-242.63554944,0.000199,2]
[359547351,1746103540225,-171.1681045,0.00019999,2]
[359547352,1746103540248,-1200.0,0.00019999,2]
[359547353,1746103540271,-300.0,0.00019999,2]
[359547354,1746103540300,-500.0,0.00019999,2]
[359547355,1746103540328,-500.0,0.00019999,2]
[359547356,1746103540355,-620.06021013,0.00019999,2]
[359547357,1746103540378,-364192.49633153,0.0002,2]
[359547360,1746103603291,-1836.7922,0.000199,2]
[359547361,1746103603315,-200.0,0.0001995,2]
[359547362,1746103603336,-500.0,0.00019973,2]
[359547363,1746103603359,-300.0,0.00019999,2]
[359547364,1746103603381,-189.38070284,0.00019999,2]
[359547365,1746103603404,-174.8762229,0.00019999,2]
[359547366,1746103603427,-430.03878334,0.00019999,2]
[359547367,1746103603455,-500.0,0.00019999,2]
[359547368,1746103603482,-500.0,0.00019999,2]
[359547369,1746103603509,-500.0,0.00019999,2]
[359547370,1746103603536,-500.0,0.00019999,2]
[359547371,1746103603562,-500.0,0.00019999,2]
[359547372,1746103603589,-500.0,0.00019999,2]
[359547373,1746103603619,-500.0,0.00019999,2]
[359547374,1746103603647,-500.0,0.00019999,2]
[359547375,1746103603677,-500.0,0.00019999,2]
[359547376,1746103603704,-500.0,0.00019999,2]
[359547377,1746103603735,-500.0,0.00019999,2]
[359547378,1746103603766,-500.0,0.00019999,2]
[359547379,1746103603798,-500.0,0.00019999,2]
[359547380,1746103603828,-500.0,0.00019999,2]
[359547381,1746103603855,-500.0,0.00019999,2]
[359547382,1746103603883,-500.0,0.00019999,2]
[359547383,1746103603910,-500.0,0.00019999,2]
[359547384,1746103603935,-500.0,0.00019999,2]
[359547385,1746103603960,-500.0,0.00019999,2]
[359547386,1746103603984,-500.0,0.00019999,2]
[359547387,1746103604010,-372.18141518,0.00019999,2]
[359547388,1746103604037,-500.0,0.00019999,2]
[359547389,1746103604064,-500.0,0.00019999,2]
[359547390,1746103604089,-74784.04869535,0.0002,2]
[359547391,1746103604114,-2512.68198039,0.0002,2]
[359547392,1746103660688,169.05,0.00019178,2]
[359547393,1746103691614,648.05,0.00032,60]
[359547409,1746103831867,-522.553121,0.00019799,2]
[359547410,1746103831876,-170.7393119,0.00019899,2]
[359547411,1746103831884,-689.14756714,0.00019899,2]
[359547412,1746103831995,-510.85243286,0.00019899,2]
[359547413,1746103832005,-200.0,0.000199,2]
[359547414,1746103832014,-250.0,0.000199,2]
[359547415,1746103832024,-284.9045,0.000199,2]
[359547416,1746103832034,-381.1732,0.000199,2]
[359547417,1746103832043,-500.0,0.00019973,2]
[359547418,1746103832053,-500.0,0.00019973,2]
[359547419,1746103832062,-500.0,0.00019973,2]
[359547420,1746103832071,-511.39034072,0.00019973,2]
[359547421,1746103832080,-500.0,0.00019999,2]
[359547422,1746103832089,-500.0,0.00019999,2]
[359547423,1746103832099,-44274.56506772,0.0002,2]
[359547425,1746103832110,-7000.73147567,0.0002,2]
[359547446,1746103838733,-578.59148371,0.0002,2]
[359547447,1746103838745,-58466.89190915,0.0002,2]
[359547448,1746103838758,-10497.40973077,0.0002,2]
[359547449,1746103839094,-116.109432,0.0002,2]
[359547450,1746103839982,-311003.42367733,0.0002,2]
[359547451,1746103839992,-207.9733281,0.00020196,2]
[359547452,1746103840001,-205.86443119,0.00020296,2]
[359547453,1746103840011,-151.1,0.00020297,2]
[359547454,1746103840020,-151.1,0.00020305,2]
[359547455,1746103840029,-151.1,0.00020312,2]
[359547456,1746103840038,-151.1,0.00020319,2]
[359547457,1746103840047,-151.1,0.00020326,2]
[359547458,1746103840056,-151.1,0.00020334,2]
[359547459,1746103840067,-151.1,0.00020341,2]
[359547460,1746103840079,-1500.0,0.00020347,2]
[359547461,1746103840091,-151.1,0.00020348,2]
[359547462,1746103840104,-151.1,0.00020355,2]
[359547463,1746103840113,-151.1,0.00020363,2]
[359547464,1746103840122,-151.1,0.0002037,2]
[359547465,1746103840133,-151.1,0.00020377,2]
[359547466,1746103840144,-151.1,0.00020384,2]
[359547467,1746103840154,-151.1,0.00020392,2]
[359547468,1746103840163,-1624.5,0.00020397,2]
[359547469,1746103840172,-151.1,0.00020399,2]
[359547470,1746103840181,-200.0,0.00020425,2]
[359547471,1746103840190,-179.36412498,0.00020428,2]
[359547472,1746103840200,-170.7393119,0.00020428,2]
[359547473,1746103840209,-2471.98,0.00020456,2]
[359547474,1746103840218,-272.02,0.00020503,2]
[359547475,1746103840227,-4000.0,0.00020528,2]
[359547476,1746103840236,-622.39,0.00020545,2]
[359547477,1746103840246,-1000.0,0.00020568,2]
[359547478,1746103840255,-500.0,0.00020593,2]
[359547479,1746103840265,-150.0,0.00020603,2]
[359547480,1746103840275,-250.0,0.00020639,2]
[359547481,1746103840286,-160.0,0.00020684,2]
[359547482,1746103840295,-2865.71,0.00020741,2]
[359547483,1746103840304,-245.95,0.00020777,2]
[359547484,1746103840314,-849.02,0.00020799,2]
[359547485,1746103840324,-150.0,0.00020799,2]
[359547486,1746103840334,-250.39,0.00020824,2]
[359547487,1746103840343,-3076.29524509,0.000209,4]
[359547488,1746103840353,-1546.11,0.00020908,2]
[359547489,1746103840363,-12399.19,0.00020954,2]
[359547490,1746103840372,-23900.0,0.00020972,2]
[359547491,1746103840381,-350.0,0.00021,2]
[359547492,1746103840390,-200.0,0.0002105,2]
[359547493,1746103840399,-2697.52,0.00021111,2]
[359547494,1746103840409,-4410.76,0.0002114,2]
[359547495,1746103840418,-220.0,0.00021233,2]
[359547496,1746103840427,-5122.4,0.0002137,2]
[359547497,1746103840437,-2229.65,0.00021457,2]
[359547498,1746103840448,-3420.53,0.0002152,2]
[359547499,1746103840459,-16355.39,0.00021561,2]
[359547500,1746103840468,-684.0,0.00021565,2]
[359547501,1746103840477,-1000.0,0.00021644,2]
[359547502,1746103840486,-435.68,0.00021757,2]
[359547503,1746103840496,-9999.99,0.00021757,2]
[359547504,1746103840505,-3194.74,0.00021757,2]
[359547505,1746103840517,-175.1,0.00021757,2]
[359547506,1746103840526,-150.99,0.00021757,2]
[359547507,1746103840536,-299.99,0.00021757,7]
[359547509,1746103840545,-9999.99,0.00021757,2]
[359547510,1746103840555,-999.99,0.00021757,2]
[359547511,1746103840564,-9999.99,0.00021757,2]
[359547512,1746103840574,-3656.25,0.00021757,2]
[359547513,1746103840582,-694.02,0.00021757,2]
[359547514,1746103840591,-150.99,0.00021757,2]
[359547515,1746103840600,-434.96,0.00021757,2]
[359547516,1746103840610,-499.99,0.00021757,2]
[359547517,1746103840620,-3076.29524492,0.00021762,5]
[359547518,1746103840629,-214.88975929,0.00021773,2]
[359547519,1746103840639,-1680.0,0.00021774,2]
[359547520,1746103840649,-1062.36711659,0.00021811,2]
[359547525,1746103840897,-200.0,0.00021889,2]
[359547526,1746103840907,-250.0,0.00021889,2]
[359547527,1746103840917,-200.0,0.0002189,2]
[359547528,1746103840927,-250.0,0.0002189,2]
[359547529,1746103840937,-150.0,0.00021917,2]
[359547530,1746103840946,-250.0,0.00021918,2]
[359547531,1746103840956,-250.39,0.00021981,2]
[359547532,1746103840965,-166.66,0.00022133,2]
[359547533,1746103840975,-304.19,0.00022398,2]
[359547534,1746103840984,-179.36412495,0.00022439,2]
[359547535,1746103840993,-158.8,0.0002244,2]
[359547536,1746103841002,-121470.28794317,0.0002261,2]
[359547537,1746103841011,-3076.29524492,0.00022624,7]
[359547538,1746103841020,-501.06029694,0.00022673,2]
[359547539,1746103841029,-500.0,0.00022673,2]
[359547540,1746103841039,-500.0,0.00022673,2]
[359547541,1746103841048,-500.0,0.00022673,2]
[359547542,1746103841059,-474.51724359,0.00022673,2]
[359547543,1746103841068,-500.68481339,0.00022673,2]
[359547544,1746103841077,-500.0,0.00022673,2]
[359547545,1746103841086,-500.0,0.00022673,2]
[359547546,1746103841096,-500.0,0.00022673,2]
[359547547,1746103841106,-500.0,0.00022673,2]
[359547548,1746103841115,-500.0,0.00022673,2]
[359547549,1746103841124,-500.0,0.00022673,2]
[359547550,1746103841133,-500.0,0.00022673,2]
[359547551,1746103841142,-500.0,0.00022673,2]
[359547552,1746103841152,-500.0,0.00022673,2]
[359547553,1746103841161,-166.66,0.00022863,2]
[359547554,1746103841171,-300.0,0.00022931,2]
[359547555,1746103841180,-400.0,0.00023,2]
[359547556,1746103841189,-202.4823363,0.00023,2]
[359547557,1746103841199,-500.0,0.00023084,2]
[359547558,1746103841208,-499.4932,0.00023084,2]
[359547559,1746103841217,-205.86443113,0.00023097,2]
[359547560,1746103841226,-250.39,0.00023138,2]
[359547561,1746103841236,-1000.0,0.00023139,2]
[359547562,1746103841245,-2382.0,0.00023149,2]
[359547563,1746103841254,-1153.32,0.00023151,2]
[359547564,1746103841263,-1153.32,0.00023151,2]
[359547565,1746103841273,-162.16,0.00023151,2]
[359547566,1746103841282,-451.39,0.00023151,2]
[359547567,1746103841291,-1153.32,0.00023151,2]
[359547568,1746103841300,-162.16,0.00023151,2]
[359547569,1746103841309,-1153.32,0.00023151,2]
[359547570,1746103841319,-451.39,0.00023151,2]
[359547571,1746103841329,-162.16,0.00023151,2]
[359547572,1746103841339,-451.39,0.00023151,2]